Cogmind - Beta 11.1 @@@ ROGUE MODE // 2022.05.18 @ 22:14:06 Player: darki Result: Destroyed by Z-Imprinter with Zionite Laser-M Performance ------------- Evolutions (1) 500 Regions Visited (5) 1000 Robots Destroyed (7) 35 Value Destroyed (212) 212 Prototype IDs (5) 100 Alien Tech Used (0) 0 Bonus (800) 800 TOTAL SCORE: 2647 Bonus ------- Pacifist 200 Met Imprinter 300 Was Imprinted 300 Cogmind --------- Core Integrity 0/400 Matter 196/300 Energy 80/100 System Corruption 0% Temperature Cool (15) Movement Core (350) Ox6 Location -7/Deep Caves Parts ------- > --- POWER (1) -------- (None) > --- PROPULSION (2) --- (None) > --- UTILITY (4) ------ Large Storage Unit Structural Scanner Signal Interpreter > --- WEAPON (2) ------- (None) > --- INVENTORY (15) --- Small Storage Unit Machine Analyzer Terrain Scan Processor Improved Melee Analysis Suite Microactuators Mobile Refinery Mk. CCLXVII Phasing AFG Mining Laser Heavy Hammer Powered Hammer Axe Peak State ------------ > --- POWER ------------ Ion Engine > --- PROPULSION ------- Aluminum Leg Aluminum Leg > --- UTILITY ---------- Small Storage Unit Structural Scanner Signal Interpreter Phasing AFG > --- WEAPON ----------- Precision Grenade Launcher Powered Hammer > --- INVENTORY -------- Large Storage Unit Terrain Scan Processor Improved Melee Analysis Suite Microactuators Mobile Refinery Mk. CCLXVII Mining Laser Heavy Hammer Axe [Rating: 30] Favorites ----------- Power Ion Engine Engine Ion Engine Propulsion Aluminum Leg Leg Aluminum Leg Utility Structural Scanner Device Structural Scanner Storage Large Storage Unit Processor Signal Interpreter Weapon Powered Hammer Energy Gun Small Laser Energy Cannon Advanced Beam Cannon Ballistic Gun Assault Rifle Launcher Precision Grenade Launcher Impact Weapon Powered Hammer Slashing Weapon Axe Build | -11 -10 -9 -9 -7 -7 ------- Run | Scr Mat Mat Min Zio Dee Slots Evolved 2 | . . 2 . . . Power . | . . . . . . Propulsion . | . . . . . . Utility 2 | . . 2 . . . Weapon . | . . . . . . Parts Attached 29 | 6 1 7 4 7 4 Power 3 | 1 . 1 1 . . Engine 3 | 1 . 1 1 . . Core . | . . . . . . Reactor . | . . . . . . Propulsion 3 | 2 . . 1 . . Treads . | . . . . . . Leg 3 | 2 . . 1 . . Wheel . | . . . . . . Hover . | . . . . . . Flight . | . . . . . . Utility 8 | 1 1 2 1 3 . Device 4 | . 1 . 1 2 . Storage 2 | 1 . . . 1 . Processor 2 | . . 2 . . . Hackware . | . . . . . . Protection . | . . . . . . Artifact . | . . . . . . Weapon 15 | 2 . 4 1 4 4 Energy Gun 1 | 1 . . . . . Energy Cannon 1 | . . 1 . . . Ballistic Gun 1 | 1 . . . . . Ballistic Cannon . | . . . . . . Launcher 8 | . . 1 . 3 4 Special Weapon . | . . . . . . Impact Weapon 2 | . . . 1 1 . Slashing Weapon 2 | . . 2 . . . Piercing Weapon . | . . . . . . Special Melee Weapon . | . . . . . . Unidentified Prototypes 4 | . . 1 . 3 . Parts Lost 10 | . . . 1 . 9 Power 2 | . . . 1 . 1 Propulsion 2 | . . . . . 2 Utility . | . . . . . . Weapon 6 | . . . . . 6 Highest Loss Streak 9 | . . . 1 . 9 To Critical Strikes . | . . . . . . Average Slot Usage (%) 91 | . 94 89 99 91 85 Engine 11 | . 14 11 10 11 10 Leg 22 | . 28 22 22 22 20 Device 13 | . 8 11 21 14 11 Storage 11 | . 14 11 11 11 11 Processor 10 | . . 12 11 11 11 Launcher 8 | . . 2 . 7 21 Impact Weapon 10 | . . . 10 13 . Slashing Weapon 2 | . . 13 12 . . Naked Turns . | . . . . . . Heaviest Build 39 | 13 14 19 19 39 39 Greatest Support 20 | 20 20 20 20 20 20 Greatest Overweight (x) 3 | . . . . 1 3 Average Overweight (x) . | . . . . . 1 Largest Inventory Capacity 15 | 8 8 8 8 15 15 Average Capacity 12 | 6 8 8 8 12 15 Most Carried 15 | 2 3 8 8 15 15 Average Carried 9 | 1 2 6 7 9 14 Final Capacity 15 | 8 8 8 8 15 15 Final Carried 15 | 2 3 8 8 15 11 Class Distribution -------------------- 100% | Mutant Dominant Class ---------------- Mutant | -10/Materials Mutant | -9/Materials Mutant | -9/Mines Mutant | -7/Zion Mutant | -7/Deep Caves Resources | -11 -10 -9 -9 -7 -7 ----------- Run | Scr Mat Mat Min Zio Dee Matter Collected 454 | 183 . 125 64 70 12 Remotely . | . . . . . . Salvage Created 335 | . . 125 162 . 48 Parts 16 | . . 13 3 . . Haulers Intercepted 1 | . . 1 . . . Recyclers Shooed . | . . . . . . Parts Field Recycled . | . . . . . . Retrieved Matter . | . . . . . . Parts Self-Destructed 1 | . . . . 1 . Prevented . | . . . . . . Kills | -11 -10 -9 -9 -7 -7 ------- Run | Scr Mat Mat Min Zio Dee Combat Hostiles Destroyed 8 | . . 1 4 . 3 Melee 4 | . . 1 3 . . AOE 3 | . . . . . 3 Classes Destroyed 5 | . . 3 1 . 1 Hauler 1 | . . 1 . . . Watcher 1 | . . 1 . . . Grunt 4 | . . . 4 . . Sentry 1 | . . 1 . . . Assembled 3 | . . . . . 3 Best Kill Streak 4 | . . 2 4 . 3 Combat Bots Only 4 | . . 1 4 . 3 Max Kills in Single Turn 2 | . . 1 1 . 2 Gunslinging . | . . . . . . Exploded 2 | . . . . . 2 Melee 1 | . . 1 1 . . Uniques/NPCs Destroyed . | . . . . . . Combat | -11 -10 -9 -9 -7 -7 -------- Run | Scr Mat Mat Min Zio Dee Damage Taken 1445 | . . 127 140 . 1178 Core 407 | . . 12 10 . 385 Absorbed by Shields . | . . . . . . Core Remaining (%) 100 | 100 100 . . . . Volleys Fired 7 | . . . . . 7 Largest 2 | . . . . . 2 Hottest 75 | . . . . . 75 Shots Fired 11 | . . . . . 11 Gun . | . . . . . . Cannon . | . . . . . . Launcher 11 | . . . . . 11 Special . | . . . . . . Kinetic . | . . . . . . Thermal . | . . . . . . Explosive 9 | . . . . . 9 Electromagnetic 2 | . . . . . 2 Robot Hit Streak 8 | . . . . . 8 Robot Miss Streak 2 | . . . . . 2 Penetration Max . | . . . . . . Secondary Targets . | . . . . . . Shots Hit Robots 23 | . . 7 8 . 8 Core Hits 9 | . . 3 2 . 4 Critical Kills 1 | . . . 1 . . Critical Parts Destroyed 1 | . . . 1 . . Critical Strikes 2 | . . . 2 . . Smash 2 | . . . 2 . . Melee Attacks 65 | . . 10 12 43 . Impact 55 | . . . 12 43 . Slashing 10 | . . 10 . . . Piercing . | . . . . . . Sneak Attacks 3 | . . 3 . . . Combat Hostiles . | . . . . . . Follow-up Attacks 1 | . . 1 . . . Damage Inflicted 1079 | . 2 337 345 . 395 Guns . | . . . . . . Cannons . | . . . . . . Explosions 395 | . . . . . 395 Melee 682 | . . 337 345 . . Ramming 2 | . 2 . . . . Kinetic . | . . . . . . Thermal . | . . . . . . Explosive 296 | . . . . . 296 Electromagnetic 99 | . . . . . 99 Impact 345 | . . . 345 . . Slashing 337 | . . 337 . . . Piercing . | . . . . . . Highest Corruption . | . . . . . . Average Corruption . | . . . . . . Corruption Purged . | . . . . . . Corruption Blocked . | . . . . . . Overload Shots . | . . . . . . Overflow Damage 179 | . . 56 41 . 82 Projectiles . | . . . . . . Explosions 82 | . . . . . 82 Melee 97 | . . 56 41 . . Knockbacks . | . . . . . . Impact . | . . . . . . Kinetic . | . . . . . . Secondary . | . . . . . . Self-Inflicted Damage 271 | . . . . . 271 Shots 8 | . . . . . 8 Rammed . | . . . . . . Targets Rammed 1 | . 1 . . . . Kicked 1 | . 1 . . . . Crushed . | . . . . . . Highest Temperature 40 | . . . . . 40 Average Temperature 13 | . . . . . 13 Received Heat Transfer 377 | . . 45 78 . 254 Siege Activations . | . . . . . . Robots Corrupted . | . . . . . . Combat Hostiles . | . . . . . . Parts Fried 1 | . . . 1 . . Impact Corruptions 3 | . . . 3 . . Robots Melted . | . . . . . . Combat Hostiles . | . . . . . . Parts Melted . | . . . . . . Heat Transferred . | . . . . . . Parts Sabotaged . | . . . . . . Parts Stolen . | . . . . . . Parts Stripped . | . . . . . . Power Chain Reactions . | . . . . . . Missiles Intercepted . | . . . . . . Alert | -11 -10 -9 -9 -7 -7 ------- Run | Scr Mat Mat Min Zio Dee Peak Influence 124 | . . 89 124 . . Initial 34 | . . . 34 . . Average 37 | . . 26 87 . . Maximum Alert Level . | . . . . . . Low Security (%) 100 | 100 100 100 100 . . Level 1 . | . . . . . . Level 2 . | . . . . . . Level 3 . | . . . . . . Level 4 . | . . . . . . Level 5 . | . . . . . . High Security . | . . . . . . Max Security . | . . . . . . Squads Dispatched 2 | . . 1 1 . . Investigation 1 | . . . 1 . . Extermination . | . . . . . . Reinforcement 1 | . . 1 . . . Assault . | . . . . . . Garrison . | . . . . . . Intercept . | . . . . . . Searches Triggered . | . . . . . . Construction Impeded . | . . . . . . Haulers Reinforced . | . . . . . . Active Scanning Responses . | . . . . . . Cargo Convoy Interrupts . | . . . . . . Stealth | -11 -10 -9 -9 -7 -7 --------- Run | Scr Mat Mat Min Zio Dee Distress Signals 2 | . . 2 . . . Communications Jammed . | . . . . . . Distress Signals . | . . . . . . Times Spotted 18 | . 4 4 4 . 6 Peak Tracking Total 7 | . 7 2 4 . 3 Tactical Retreats 1 | . . 1 . . . Traps | -11 -10 -9 -9 -7 -7 ------- Run | Scr Mat Mat Min Zio Dee Traps Triggered . | . . . . . . Indirectly . | . . . . . . Trap Hack Attempts . | . . . . . . Triggered . | . . . . . . Disarmed . | . . . . . . Reprogrammed . | . . . . . . Reused . | . . . . . . Traps Extracted . | . . . . . . Installed . | . . . . . . Triggered . | . . . . . . Machines | -11 -10 -9 -9 -7 -7 ---------- Run | Scr Mat Mat Min Zio Dee Machines Disabled 1 | . . . . 1 . Max in Single Turn 1 | . . . . 1 . Machines Sabotaged . | . . . . . . Garrisons Compromised . | . . . . . . Overloaded Fab Kills . | . . . . . . Hacking | -11 -10 -9 -9 -7 -7 --------- Run | Scr Mat Mat Min Zio Dee Machines Accessed 3 | . . 1 1 1 . Terminals 1 | . . 1 . . . Fabricators . | . . . . . . Repair Stations . | . . . . . . Recycling Units . | . . . . . . Scanalyzers . | . . . . . . Garrison Access . | . . . . . . Total Hacks 5 | . . 1 1 3 . Successful 5 | . . 1 1 3 . Failed . | . . . . . . Catastrophic . | . . . . . . Database Lockouts . | . . . . . . Manual 1 | . . 1 . . . Terminals 1 | . . 1 . . . Fabricators . | . . . . . . Repair Stations . | . . . . . . Recycling Units . | . . . . . . Scanalyzers . | . . . . . . Garrison Access . | . . . . . . Terminal Hacks 5 | . . 1 1 3 . Part Schematic 3 | . . . . 3 . Open Door 1 | . . . 1 . . Branch Access Points 1 | . . 1 . . . Fabricator Hacks . | . . . . . . Repair Station Hacks . | . . . . . . Recycling Unit Hacks . | . . . . . . Scanalyzer . | . . . . . . Garrison Access Hacks . | . . . . . . Unauthorized Hacks . | . . . . . . Terminals . | . . . . . . Fabricators . | . . . . . . Repair Stations . | . . . . . . Recycling Units . | . . . . . . Scanalyzers . | . . . . . . Garrison Access . | . . . . . . Data Cores Recovered . | . . . . . . Used . | . . . . . . Hacking Detections 1 | . . 1 . . . Full Trace Events . | . . . . . . Feedback Events . | . . . . . . Feedback Blocked . | . . . . . . Robot Schematics Acquired 3 | . . . . 3 . Robots Built . | . . . . . . Authchips . | . . . . . . Time . | . . . . . . Total Robot Build Rating . | . . . . . . Part Schematics Acquired 18 | . . . . 18 . Parts Built . | . . . . . . Authchips . | . . . . . . Time . | . . . . . . Total Part Build Rating . | . . . . . . Parts Repaired . | . . . . . . Time . | . . . . . . Parts Recycled . | . . . . . . Recycled Matter . | . . . . . . Retrieved Matter . | . . . . . . Retrieved Components . | . . . . . . Parts Scanalyzed . | . . . . . . Part Schematics Acquired . | . . . . . . Parts Damaged . | . . . . . . Bothacking | -11 -10 -9 -9 -7 -7 ------------ Run | Scr Mat Mat Min Zio Dee Used RIF Installer . | . . . . . . Robots Hacked . | . . . . . . Non-combat . | . . . . . . Combat . | . . . . . . Robot Hacks Applied . | . . . . . . Relay Couplers Released . | . . . . . . Fabnet Peak Effective % . | . . . . . . Robots Rewired . | . . . . . . Allies Hacked . | . . . . . . Hacks Repelled . | . . . . . . Allies | -11 -10 -9 -9 -7 -7 -------- Run | Scr Mat Mat Min Zio Dee Total Allies 4 | . . . . 4 . Largest Group 4 | . . . . 4 1 Highest-Rated Group 158 | . . . . 158 41 Highest-Rated Ally 41 | . . . . 41 41 Total Orders . | . . . . . . Ally Attacks . | . . . . . . Total Damage . | . . . . . . Kills . | . . . . . . Allies Corrupted . | . . . . . . Allies Melted . | . . . . . . Intel | -11 -10 -9 -9 -7 -7 ------- Run | Scr Mat Mat Min Zio Dee Robot Analysis Total . | . . . . . . Derelict Logs Recovered 4 | . . . 1 3 . Drone Launches . | . . . . . . Drone Recoveries . | . . . . . . Exploration | -11 -10 -9 -9 -7 -7 ------------- Run | Scr Mat Mat Min Zio Dee Turns Passed 4352 | 68 103 389 220 3151 421 Spaces Moved 2269 | 49 83 190 134 1610 203 Core 1 | 1 . . . . . Treads . | . . . . . . Legs 2268 | 48 83 190 134 1610 203 Wheels . | . . . . . . Hover . | . . . . . . Flight . | . . . . . . Fastest Speed 50 | 50 120 120 120 120 190 Average Speed 174 | 118 120 120 120 187 191 Slowest Speed 330 | 120 120 120 120 190 330 Overloaded Moves . | . . . . . . Propulsion Burnouts . | . . . . . . Robots Hopped . | . . . . . . Cave-ins Triggered . | . . . . . . Exploration Rate (%) 31 | 3 20 17 37 88 22 Regions Visited 5 Branch Regions 3 Pre-discovered Areas 4 | . . . 1 3 . Known Exits Taken 3 | . . 1 1 1 . Unknown Exits Taken 2 | 1 1 . . . . Scrap Searched 4 | . . . 1 3 . Spaces Dug 2 | . . . . 2 . Terrain Destroyed 34 | . . . . 2 32 Melee 2 | . . . . 2 . Projectile . | . . . . . . AOE 32 | . . . . . 32 Terrain Rammed . | . . . . . . Walls Destroyed . | . . . . . . Machines Disabled . | . . . . . . Actions | -11 -10 -9 -9 -7 -7 --------- Run | Scr Mat Mat Min Zio Dee Total 2564 | 56 85 337 180 1683 223 Wait 173 | . . 122 23 20 8 Move 2264 | 48 82 189 133 1609 203 Hop . | . . . . . . Pick Up 19 | 2 1 5 2 9 . Fast Attach 18 | 6 1 7 3 1 . Attach 4 | . . . . . 4 Detach 5 | . . 2 1 2 . Swap 7 | . . . 1 6 . Drop 14 | . . 5 5 4 . Fire 7 | . . . . . 7 Melee 51 | . . 7 12 32 . Ram . | . . . . . . Kick 1 | . 1 . . . . Crush . | . . . . . . Escape Stasis . | . . . . . . Rewire 1 | . . . . . 1 Trap . | . . . . . . Miscellaneous . | . . . . . . Route ------- -11/Scrapyard -10/Materials -9/Materials -9/Mines -7/Zion (discovered 2 exits: *Dee / Pro) -7/Deep Caves History --------- Turn | Location | Event 7 | -11/Scrapyard | Discovered new exit (range 14) 69 | -11/Scrapyard | Entered Materials 168 | -10/Materials | Discovered new exit (range 3) 172 | -10/Materials | Entered another Materials area 172 | -9/Materials | Evolved 2 slots: Utility x2 195 | -9/Materials | Identified exit to Mines 300 | -9/Materials | Build established: Mutant 561 | -9/Materials | Entered Mines 567 | -9/Mines | Met a Derelict shopkeep closing up shop 774 | -9/Mines | A Derelict revealed a hidden shortcut to a safe place 777 | -9/Mines | Identified exit to Zion 781 | -9/Mines | Entered Zion 1050 | -7/Zion | Found Prototype Device 1273 | -7/Zion | Learned location of Extension (-4) 1678 | -7/Zion | Identified exit to Proximity Caves 1714 | -7/Zion | Found Prototype Device 1763 | -7/Zion | Identified Phasing AFG 1764 | -7/Zion | Identified Mobile Refinery Mk. CCLXVII 2010 | -7/Zion | Learned location of Data Miner (-6) 2126 | -7/Zion | Imprinted 2128 | -7/Zion | Declared Zion's savior 2477 | -7/Zion | Learned location of Recycling (-7) 2675 | -7/Zion | Discovered new exit (range 6) 2679 | -7/Zion | Saw the warning signs outside the Deep Caves entrance 3290 | -7/Zion | Identified exit to Deep Caves 3932 | -7/Zion | Entered Deep Caves 3932 | -7/Deep Caves | Accompanied by 4 allies 4324 | -7/Deep Caves | Attacked by Z-Imprinter 4341 | -7/Deep Caves | Core integrity fell below 50% 4348 | -7/Deep Caves | Core integrity fell below 20% 4353 | -7/Deep Caves | Destroyed by Z-Imprinter with Zionite Laser-M Last Messages --------------- 03968_ as-64151 destroyed. 03977_ Acquired 12 matter. 04063_ Attempting to rewire Surveybot 24. 04063_ Surveybot 24 is broken beyond repair. 04314_ NEW_ZION: Z-Facility proximity alert. Z-Imprinter: GET AWAY FROM HERE! I've worked too hard for our future just to have you ruin everything! 04327_ Aluminum Leg destroyed. 04327_ Proton Missile Launcher destroyed. 04337_ Ion Engine destroyed. 04337_ Destroyed Ion Engine. 04337_ Aluminum Leg destroyed. 04337_ Destroyed Aluminum Leg. 04340_ Prc. Grenade Launcher destroyed. 04340_ Destroyed Prc. Grenade Launcher. 04344_ Imp. Grenade Launcher destroyed. 04345_ Rocket Launcher destroyed. 04345_ Destroyed Rocket Launcher. 04347_ Missile Launcher destroyed. 04352_ Rocket Launcher destroyed. Map ----- +----------------------------------------------------+ | | | | | | | | | | | | | | | | | | | | | | | | | | | | | | | | | | | | | | | | | | | | | ??????????########### # ## ##?????????????????? | | ??????????############ ###?????????????????? | | ??????????## #####??????????????? | | ?????????? @ ######???########??? | | ?????????? I ;## ###?###########?? | | ?????????? # ####### ###?? | | ?????????? ##### ##?? | | ??????????? ##?? | | ??????????? ##?? | | ???????????? zz ###?? | | ???????????? ###?? | | ????????????" """""" ##### | | ?????????????""""""""" #### | | ??????????????????"""" | | ???????????????????""" | | ???????????????????? | | ????????????????????"" ## | | ???????????????????""" #### | | ?????????????????????" ##### | | ?????????????????????" ###?? | | ???????????????????????? ##??? | | ?????????????????????????? #??? | | ???????????????????????????????? ????? | | ????????????????????????????????? ????? | | ?????????????????????????????????? ????? | | ??????????????????????????????????? ????? | | ????????????????????????????????????? ????? | | ??????????????????????????????????????? ????? | +----------------------------------------------------+ Best States ------------- Heat Dissipation 28 Energy Generation 14 Energy Capacity 250 Matter Stores 300 Matter Capacity 300 Sight Range 18 Terrain Scan Density 10 Melee Speed Boost 20 Evasion (%) 55 Item Schematics ----------------- Riot Gun | -7/Zion | Free Flamer | -7/Zion | Free Battle Cannon | -7/Zion | Free Imp. Actuator Array | -7/Zion | Archive Mak. Laser | -7/Zion | Archive Force Field | -7/Zion | Archive Adv. Terrain Scan Processor | -7/Zion | Archive Imp. Kinecellerator | -7/Zion | Archive Hvy. Rocket Launcher | -7/Zion | Archive Proton Cannon | -7/Zion | Archive Adv. Terrain Scanner | -7/Zion | Archive Imp. Deuterium Engine | -7/Zion | Archive Proton Missile Launcher | -7/Zion | Archive Imp. Shield Generator | -7/Zion | Archive EM Disruption Field | -7/Zion | Archive 0b10 Decoder Chip [Looter] | -7/Zion | Archive Hvy. Laser | -7/Zion | Archive Imp. KE Penetrator | -7/Zion | Archive Robot Schematics ------------------ R-06 Scavenger | -7/Zion | Archive X-62 Marksman | -7/Zion | Archive S-27 Virus | -7/Zion | Archive Fabricated ------------ Nothing Alien Tech Used ----------------- None Achievements -------------- None Challenges ------------ None Game ------ Seed MiningGuidanceSplitter Manual? 0 Play Time 00:20:07 Cumulative 70.1 hours Start 2022.05.18 @ 21:32:00 End 2022.05.18 @ 22:14:06 Sessions 1 Manual Loads 0 Difficulty Rogue Special Mode None Game No. 80 Rogue 80 Adventurer 0 Explorer 0 Win Type - Total 0 Types 0/0/0/0/0/0/0/0/0 Lore% 40 Gallery% 49 Achievement% 38 Wizard Run 0 Options --------- ASCII 0 Keyboard 0 Movement Mouse Keybinds 0 Fullscreen 1 Font 18/SmallcapsGlow Map View 76x50 Tactical HUD 1 Map Filters NONE Filters NONE Steam 1 RUN: 678b88f1-7201-4f7d-86ec-cebf027d71d3